[Event "Lueneburg Open-A 2019"]
[Site "Lueneburg"]
[Date "2019.08.06"]
[Round "4.33"]
[White "Wozny, Michael"]
[Black "Colbow, Collin"]
[Result "0-1"]
[ECO "A37"]
[WhiteElo "1942"]
[BlackElo "2167"]
[Annotator "NA"]
[PlyCount "104"]
[EventDate "2019.08.03"]
[EventType "swiss"]
[EventCountry "GER"]
[SourceTitle "playchess.com"]
[Source "ChessBase"]
[SourceQuality "1"]
[TimeControl "40/5400+30:1800+30"]

1. c4 {[%emt 0:00:00]} c5 {[%emt 0:06:00]} 2. Nf3 {[%emt 0:00:50]} g6 {[%emt 0:00:17]} 3. g3 {[%emt 0:00:32]} Bg7 {[%emt 0:00:05]} 4. Bg2 {[%emt 0:00:27]} Nc6 {[%emt 0:00:14]} 5. O-O {[%emt 0:00:33]} e5 {[%emt 0:01:43]} 6. d3 {[%emt 0:00:05]} Nge7 {[%emt 0:01:17]} 7. Nc3 {[%emt 0:00:32]} d6 {[%emt 0:01:05]} 8. Bd2 {[%emt 0:01:08]} O-O {[%emt 0:01:15]} 9. Qc1 {[%emt 0:00:36]} f5 {[%emt 0:04:49]} 10. Bh6 {[%emt 0:06:30]} f4 {[%emt 0:07:33]} 11. Bxg7 {[%emt 0:00:11]} Kxg7 {[%emt 0:00:20]} 12. Qd2 {[%emt 0:14:17]} h6 {[%emt 0:07:58]} 13. e3 {[%emt 0:03:00]} g5 {[%emt 0:01:44]} 14. exf4 {[%emt 0:02:27]} exf4 {[%emt 0:07:18]} 15. gxf4 {[%emt 0:02:05]} Rxf4 {[%emt 0:05:06]} 16. Ne2 {[%emt 0:01:14]} Rf6 {[%emt 0:02:12]} 17. Ne1 {[%emt 0:06:04]} Bg4 {[%emt 0:07:45]} 18. f3 {[%emt 0:01:02]} Bh5 {[%emt 0:01:58]} 19. Ng3 {[%emt 0:00:03]} Bg6 {[%emt 0:01:06]} 20. f4 {[%emt 0:04:32]} gxf4 {[%emt 0:01:14]} 21. Ne4 {[%emt 0:00:08]} Bxe4 {[%emt 0:05:37]} 22. Bxe4 {[%emt 0:00:24]} Qf8 {[%emt 0:03:26]} 23. Nf3 {[%emt 0:00:11]} Qf7 {[%emt 0:04:23]} 24. Kh1 {[%emt 0:00:11]} Kh8 {[%emt 0:01:21]} 25. Rg1 {[%emt 0:01:44]} Rg8 {[%emt 0:04:32]} 26. Rxg8+ {[%emt 0:00:39]} Kxg8 {[%emt 0:01:40]} 27. b3 {[%emt 0:04:56]} Kf8 {[%emt 0:01:16]} 28. Rg1 {[%emt 0:02:05]} Qh5 {[%emt 0:05:10]} 29. Qg2 {[%emt 0:02:59]} Ke8 {[%emt 0:03:02]} 30. Qg7 {[%emt 0:06:14]} Qf7 {[%emt 0:00:24]} 31. Qg4 {[%emt 0:04:28]} Kd8 {[%emt 0:00:16]} 32. Qh4 {[%emt 0:06:50]} Kc7 {[%emt 0:00:40]} 33. Qf2 {[%emt 0:02:29]} Nf5 {[%emt 0:04:17]} 34. b4 {[%emt 0:00:43]} Nxb4 {[%emt 0:01:55]} 35. Qb2 {[%emt 0:02:09]} Ne3 {[%emt 0:04:14]} 36. a3 {[%emt 0:04:35]} Nc6 {[%emt 0:00:15]} 37. Rb1 {[%emt 0:01:14]} b6 {[%emt 0:00:47]} 38. Qb5 {[%emt 0:05:32]} Na5 {[%emt 0:02:28]} 39. Qb2 {[%emt 0:02:26]} Kd8 {[%emt 0:01:36]} 40. Rg1 {[%emt 0:00:12]} Ke8 {[%emt 0:01:06]} 41. Nh4 {[%emt 0:30:12]} Ke7 {[%emt 0:18:15]} 42. Ng6+ {[%emt 0:00:00]} Ke6 {[%emt 0:05:29]} 43. Bd5+ {[%emt 0:00:00]} Nxd5 {[%emt 0:00:07]} 44. cxd5+ {[%emt 0:00:00]} Kd7 {[%emt 0:01:15]} 45. Nxf4 {[%emt 0:00:00]} Rxf4 {[%emt 0:00:25]} 46. Rg7 {[%emt 0:00:00]} Rf1+ {[%emt 0:00:04]} 47. Kg2 {[%emt 0:00:00]} Rf2+ {[%emt 0:00:03]} 48. Kg3 {[%emt 0:00:00]} Rxb2 {[%emt 0:00:17]} 49. Rxf7+ {[%emt 0:00:00]} Ke8 {[%emt 0:00:16]} 50. Rxa7 {[%emt 0:00:00]} Rb3 {[%emt 0:00:17]} 51. Kf4 {[%emt 0:00:00]} Rxd3 {[%emt 0:01:19]} 52. Kf5 {[%emt 0:00:00]} Nc4 {[%emt 0:00:37]} 0-1

[Event "Lueneburg Open-A 2019"]
[Site "Lueneburg"]
[Date "2019.08.06"]
[Round "4.34"]
[White "Grote, Dirk"]
[Black "Kasipour Azbari, Seyed Arvin"]
[Result "1/2-1/2"]
[ECO "E61"]
[WhiteElo "2037"]
[BlackElo "1765"]
[Annotator "NA"]
[PlyCount "54"]
[EventDate "2019.08.03"]
[EventType "swiss"]
[EventCountry "GER"]
[SourceTitle "playchess.com"]
[Source "ChessBase"]
[SourceQuality "1"]
[TimeControl "40/5400+30:1800+30"]

1. d4 {[%emt 0:00:00]} Nf6 {[%emt 0:00:30]} 2. Nf3 {[%emt 0:00:00]} g6 {[%emt 0:00:14]} 3. c4 {[%emt 0:00:06]} Bg7 {[%emt 0:00:12]} 4. Nc3 {[%emt 0:00:39]} d6 {[%emt 0:00:19]} 5. Bg5 {[%emt 0:00:17]} O-O {[%emt 0:01:30]} 6. e3 {[%emt 0:00:27]} Nbd7 {[%emt 0:06:44]} 7. Be2 {[%emt 0:01:22]} c5 {[%emt 0:01:46]} 8. d5 {[%emt 0:03:36]} h6 {[%emt 0:06:12]} 9. Bh4 {[%emt 0:00:42]} Nh7 {[%emt 0:01:44]} 10. e4 {[%emt 0:06:06]} Ne5 {[%emt 0:04:40]} 11. Nxe5 {[%emt 0:21:08]} Bxe5 {[%emt 0:00:13]} 12. O-O {[%emt 0:00:29]} f5 {[%emt 0:04:38]} 13. exf5 {[%emt 0:00:53]} Bxf5 {[%emt 0:01:15]} 14. Bd3 {[%emt 0:07:34]} Qd7 {[%emt 0:06:48]} 15. Qe2 {[%emt 0:05:28]} Rf7 {[%emt 0:05:06]} 16. Rae1 {[%emt 0:01:26]} Raf8 {[%emt 0:06:36]} 17. Bg3 {[%emt 0:06:02]} Bxg3 {[%emt 0:04:25]} 18. hxg3 {[%emt 0:01:19]} Ng5 {[%emt 0:12:53]} 19. Bxf5 {[%emt 0:12:46]} gxf5 {[%emt 0:02:36]} 20. f4 {[%emt 0:03:49]} Nh7 {[%emt 0:01:15]} 21. Qe6 {[%emt 0:00:14]} Nf6 {[%emt 0:05:20]} 22. Qxd7 {[%emt 0:00:34]} Nxd7 {[%emt 0:00:16]} 23. Re6 {[%emt 0:00:29]} Rg7 {[%emt 0:01:28]} 24. Rf3 {[%emt 0:01:39]} Nf6 {[%emt 0:00:53]} 25. Rfe3 {[%emt 0:02:11]} Rff7 {[%emt 0:01:35]} 26. Ne2 {[%emt 0:10:28]} a6 {[%emt 0:09:13]} 27. Rb3 {[%emt 0:13:46]} b5 {[%emt 0:15:09]} 1/2-1/2

[Event "Lueneburg Open-A 2019"]
[Site "Lueneburg"]
[Date "2019.08.06"]
[Round "4.35"]
[White "Hesse, Juergen"]
[Black "Wobbe, Sven"]
[Result "1/2-1/2"]
[ECO "B23"]
[WhiteElo "1877"]
[BlackElo "2019"]
[Annotator "NA"]
[PlyCount "40"]
[EventDate "2019.08.03"]
[EventType "swiss"]
[EventCountry "GER"]
[SourceTitle "playchess.com"]
[Source "ChessBase"]
[SourceQuality "1"]
[TimeControl "40/5400+30:1800+30"]

1. e4 {[%emt 0:00:00]} c5 {[%emt 0:00:00]} 2. Nc3 {[%emt 0:00:02]} e6 {[%emt 0:00:40]} 3. f4 {[%emt 0:03:11]} d6 {[%emt 0:00:55]} 4. Bb5+ {[%emt 0:01:39]} Bd7 {[%emt 0:00:42]} 5. Bxd7+ {[%emt 0:02:22]} Qxd7 {[%emt 0:00:10]} 6. Nf3 {[%emt 0:00:40]} Nc6 {[%emt 0:01:00]} 7. O-O {[%emt 0:02:13]} g6 {[%emt 0:03:20]} 8. d3 {[%emt 0:03:43]} Bg7 {[%emt 0:07:59]} 9. Qe1 {[%emt 0:04:48]} Nd4 {[%emt 0:02:56]} 10. Qf2 {[%emt 0:01:44]} Ne7 {[%emt 0:02:48]} 11. Be3 {[%emt 0:02:39]} Nec6 {[%emt 0:04:30]} 12. Nd1 {[%emt 0:07:09]} Nxf3+ {[%emt 0:02:24]} 13. Qxf3 {[%emt 0:01:50]} f5 {[%emt 0:01:35]} 14. c3 {[%emt 0:02:39]} O-O {[%emt 0:03:37]} 15. g4 {[%emt 0:08:39]} b6 {[%emt 0:27:34]} 16. Qg3 {[%emt 0:11:19]} Rad8 {[%emt 0:07:11]} 17. Nf2 {[%emt 0:03:27]} Kh8 {[%emt 0:08:05]} 18. h4 {[%emt 0:07:06]} fxg4 {[%emt 0:00:59]} 19. Nxg4 {[%emt 0:02:24]} e5 {[%emt 0:01:32]} 20. Rf2 {[%emt 0:01:17]} Ra8 {[%emt 0:22:03]} 1/2-1/2

[Event "Lueneburg Open-A 2019"]
[Site "Lueneburg"]
[Date "2019.08.06"]
[Round "4.36"]
[White "Buchaeckert, Juergen"]
[Black "Anderberg, Peter"]
[Result "1/2-1/2"]
[ECO "C22"]
[WhiteElo "1839"]
[BlackElo "2014"]
[Annotator "NA"]
[PlyCount "30"]
[EventDate "2019.08.03"]
[EventType "swiss"]
[EventCountry "GER"]
[SourceTitle "playchess.com"]
[Source "ChessBase"]
[SourceQuality "1"]
[TimeControl "40/5400+30:1800+30"]

1. e4 {[%emt 0:00:00]} e5 {[%emt 0:03:15]} 2. d4 {[%emt 0:00:00]} exd4 {[%emt 0:00:07]} 3. Qxd4 {[%emt 0:00:03]} Nc6 {[%emt 0:00:24]} 4. Qe3 {[%emt 0:00:06]} g6 {[%emt 0:01:06]} 5. Nc3 {[%emt 0:00:15]} Bg7 {[%emt 0:00:29]} 6. Bd2 {[%emt 0:00:05]} Nf6 {[%emt 0:00:24]} 7. O-O-O {[%emt 0:00:09]} O-O {[%emt 0:00:17]} 8. Bc4 {[%emt 0:01:17]} Re8 {[%emt 0:01:06]} 9. Nf3 {[%emt 0:07:38]} Na5 {[%emt 0:06:19]} 10. Bd3 {[%emt 0:02:06]} c6 {[%emt 0:03:37]} 11. Qg5 {[%emt 0:15:26]} d5 {[%emt 0:20:03]} 12. exd5 {[%emt 0:01:16]} h6 {[%emt 0:00:54]} 13. Qh4 {[%emt 0:08:09]} cxd5 {[%emt 0:22:30]} 14. Bxh6 {[%emt 0:11:09]} Bxh6+ {[%emt 0:02:08]} 15. Qxh6 {[%emt 0:00:55]} Ng4 {[%emt 0:02:45]} 1/2-1/2

[Event "Lueneburg Open-A 2019"]
[Site "Lueneburg"]
[Date "2019.08.06"]
[Round "4.37"]
[White "Lu, Siyuan"]
[Black "Nielsen, Joerg"]
[Result "1/2-1/2"]
[ECO "B02"]
[WhiteElo "1711"]
[BlackElo "2000"]
[Annotator "NA"]
[PlyCount "101"]
[EventDate "2019.08.03"]
[EventType "swiss"]
[EventCountry "GER"]
[SourceTitle "playchess.com"]
[Source "ChessBase"]
[SourceQuality "1"]
[TimeControl "40/5400+30:1800+30"]

1. e4 {[%emt 0:00:00]} Nf6 {[%emt 0:00:00]} 2. Nc3 {[%emt 0:00:00]} d5 {[%emt 0:00:00]} 3. exd5 {[%emt 0:00:00]} Nxd5 {[%emt 0:00:04]} 4. Bc4 {[%emt 0:00:00]} e6 {[%emt 0:00:07]} 5. Nxd5 {[%emt 0:02:03]} exd5 {[%emt 0:00:15]} 6. Be2 {[%emt 0:00:39]} Bd6 {[%emt 0:01:50]} 7. d4 {[%emt 0:00:50]} O-O {[%emt 0:00:14]} 8. Nf3 {[%emt 0:00:10]} Re8 {[%emt 0:00:42]} 9. O-O {[%emt 0:00:20]} h6 {[%emt 0:02:54]} 10. h3 {[%emt 0:03:28]} Nd7 {[%emt 0:00:27]} 11. Bd3 {[%emt 0:01:20]} Nf6 {[%emt 0:00:44]} 12. Re1 {[%emt 0:00:36]} Ne4 {[%emt 0:02:45]} 13. Nd2 {[%emt 0:08:09]} f5 {[%emt 0:08:01]} 14. Nxe4 {[%emt 0:02:16]} fxe4 {[%emt 0:00:43]} 15. Be2 {[%emt 0:00:08]} Qh4 {[%emt 0:02:28]} 16. Bg4 {[%emt 0:13:24]} Rf8 {[%emt 0:01:28]} 17. Be3 {[%emt 0:00:29]} c6 {[%emt 0:13:31]} 18. g3 {[%emt 0:05:32]} Bxg4 {[%emt 0:07:36]} 19. Qxg4 {[%emt 0:00:07]} Qxg4 {[%emt 0:00:25]} 20. hxg4 {[%emt 0:00:08]} g5 {[%emt 0:04:21]} 21. Kg2 {[%emt 0:00:36]} Rf3 {[%emt 0:00:44]} 22. Re2 {[%emt 0:01:24]} b5 {[%emt 0:01:38]} 23. c3 {[%emt 0:03:34]} Kg7 {[%emt 0:01:51]} 24. Rc1 {[%emt 0:05:56]} Kg6 {[%emt 0:01:23]} 25. a4 {[%emt 0:05:30]} bxa4 {[%emt 0:03:17]} 26. Ra1 {[%emt 0:00:59]} Rff8 {[%emt 0:02:31]} 27. Rxa4 {[%emt 0:00:37]} a5 {[%emt 0:00:38]} 28. Re1 {[%emt 0:00:44]} Rfb8 {[%emt 0:03:00]} 29. Rb1 {[%emt 0:02:44]} Rb5 {[%emt 0:02:33]} 30. c4 {[%emt 0:16:45]} Rb4 {[%emt 0:00:49]} 31. Rxb4 {[%emt 0:02:02]} Bxb4 {[%emt 0:01:10]} 32. cxd5 {[%emt 0:00:51]} cxd5 {[%emt 0:00:25]} 33. Rc1 {[%emt 0:00:26]} Ra6 {[%emt 0:00:25]} 34. Rc7 {[%emt 0:01:53]} Rb6 {[%emt 0:06:05]} 35. Rd7 {[%emt 0:01:52]} Rd6 {[%emt 0:02:46]} 36. Rc7 {[%emt 0:04:40]} Ra6 {[%emt 0:02:08]} 37. Kf1 {[%emt 0:03:27]} Kf6 {[%emt 0:02:27]} 38. Ke2 {[%emt 0:00:59]} Rb6 {[%emt 0:03:13]} 39. Bc1 {[%emt 0:05:43]} Bd6 {[%emt 0:02:20]} 40. Ra7 {[%emt 0:02:01]} Bb4 {[%emt 0:04:09]} 41. Rc7 {[%emt 0:31:01]} Ke6 {[%emt 0:33:55]} 42. Kd1 {[%emt 0:02:16]} Bd6 {[%emt 0:03:44]} 43. Ra7 {[%emt 0:00:00]} Rb4 {[%emt 0:00:00]} 44. Be3 {[%emt 0:00:00]} Rxb2 {[%emt 0:00:00]} 45. Rxa5 {[%emt 0:00:00]} Rb6 {[%emt 0:00:00]} 46. Ra7 {[%emt 0:00:00]} Be7 {[%emt 0:00:00]} 47. Kc2 {[%emt 0:00:00]} Bd6 {[%emt 0:00:00]} 48. Bd2 {[%emt 0:00:00]} Rc6+ {[%emt 0:00:00]} 49. Kb3 {[%emt 0:00:00]} Be7 {[%emt 0:00:00]} 50. Rb7 {[%emt 0:00:00]} Bd6 {[%emt 0:00:00]} 51. Rc7 {[%emt 0:00:00]} 1/2-1/2

[Event "Lueneburg Open-A 2019"]
[Site "Lueneburg"]
[Date "2019.08.07"]
[Round "5.1"]
[White "Wachinger, David"]
[Black "Ertan, Can"]
[Result "0-1"]
[ECO "A32"]
[WhiteElo "2045"]
[BlackElo "2396"]
[Annotator "NA"]
[PlyCount "74"]
[EventDate "2019.08.03"]
[EventType "swiss"]
[EventCountry "GER"]
[SourceTitle "playchess.com"]
[Source "ChessBase"]
[SourceQuality "1"]
[TimeControl "40/5400+30:1800+30"]

1. d4 {[%emt 0:00:00]} Nf6 {[%emt 0:00:00]} 2. c4 {[%emt 0:00:00]} c5 {[%emt 0:00:00]} 3. Nf3 {[%emt 0:00:23]} cxd4 {[%emt 0:00:00]} 4. Nxd4 {[%emt 0:00:10]} e6 {[%emt 0:00:00]} 5. Nc3 {[%emt 0:00:52]} d5 {[%emt 0:01:37]} 6. cxd5 {[%emt 0:01:04]} Nxd5 {[%emt 0:00:41]} 7. Bd2 {[%emt 0:00:26]} Bc5 {[%emt 0:00:11]} 8. Nb3 {[%emt 0:00:37]} Bb6 {[%emt 0:00:03]} 9. e4 {[%emt 0:09:27]} Nb4 {[%emt 0:06:38]} 10. Bb5+ {[%emt 0:16:43]} N8c6 {[%emt 0:17:35]} 11. O-O {[%emt 0:01:08]} O-O {[%emt 0:05:43]} 12. Qh5 {[%emt 0:10:41]} a6 {[%emt 0:22:28]} 13. Be2 {[%emt 0:04:20]} h6 {[%emt 0:00:12]} 14. Rad1 {[%emt 0:05:19]} Qf6 {[%emt 0:01:08]} 15. Be3 {[%emt 0:11:46]} Bxe3 {[%emt 0:00:48]} 16. fxe3 {[%emt 0:00:08]} Qe5 {[%emt 0:00:10]} 17. a3 {[%emt 0:01:20]} Nc2 {[%emt 0:01:20]} 18. Qxe5 {[%emt 0:14:50]} Nxe5 {[%emt 0:00:03]} 19. Kf2 {[%emt 0:00:47]} f5 {[%emt 0:01:27]} 20. Bf3 {[%emt 0:00:36]} fxe4 {[%emt 0:04:12]} 21. Nxe4 {[%emt 0:00:03]} Bd7 {[%emt 0:01:34]} 22. Rd2 {[%emt 0:10:01]} Bc6 {[%emt 0:01:52]} 23. Rxc2 {[%emt 0:03:34]} Bxe4 {[%emt 0:00:28]} 24. Rc7 {[%emt 0:00:02]} Nxf3 {[%emt 0:11:30]} 25. gxf3 {[%emt 0:00:02]} Rxf3+ {[%emt 0:00:09]} 26. Ke2 {[%emt 0:00:55]} Rh3 {[%emt 0:02:35]} 27. Rf2 {[%emt 0:04:01]} Rf8 {[%emt 0:00:04]} 28. Rxf8+ {[%emt 0:00:09]} Kxf8 {[%emt 0:00:02]} 29. Nc5 {[%emt 0:00:06]} Rxh2+ {[%emt 0:00:09]} 30. Ke1 {[%emt 0:00:55]} Bf5 {[%emt 0:03:02]} 31. Rxb7 {[%emt 0:00:03]} h5 {[%emt 0:03:53]} 32. Nxa6 {[%emt 0:01:36]} h4 {[%emt 0:00:22]} 33. Rb8+ {[%emt 0:00:52]} Kf7 {[%emt 0:00:08]} 34. Rh8 {[%emt 0:01:18]} h3 {[%emt 0:00:12]} 35. b4 {[%emt 0:00:39]} Rb2 {[%emt 0:03:07]} 36. e4 {[%emt 0:00:09]} Bg4 {[%emt 0:00:17]} 37. Nc5 {[%emt 0:00:19]} h2 {[%emt 0:00:11]} 0-1

[Event "Lueneburg Open-A 2019"]
[Site "Lueneburg"]
[Date "2019.08.07"]
[Round "5.2"]
[White "Ovsejevitsch, Sergei"]
[Black "Jahncke, Giso"]
[Result "1/2-1/2"]
[ECO "C26"]
[WhiteElo "2590"]
[BlackElo "2325"]
[Annotator "ChessBase"]
[PlyCount "62"]
[EventDate "2019.08.03"]
[EventType "swiss"]
[EventCountry "GER"]
[SourceTitle "playchess.com"]
[Source "ChessBase"]
[SourceQuality "1"]
[TimeControl "40/5400+30:1800+30"]

1. e4 {[%emt 0:00:33]} e5 {[%emt 0:01:29]} 2. Nc3 {[%emt 0:02:19]} Nf6 {[%emt 0:00:32]} 3. d4 {[%emt 0:00:49]} exd4 {[%emt 0:01:54]} 4. Qxd4 {[%emt 0:00:07]} Nc6 {[%emt 0:00:06]} 5. Qd3 {[%emt 0:00:16]} d5 {[%emt 0:09:24]} 6. Bf4 {[%emt 0:02:54]} Nb4 {[%emt 0:19:31]} 7. Qe2 {[%emt 0:09:57]} dxe4 {[%emt 0:03:47]} 8. a3 {[%emt 0:06:36]} Nbd5 {[%emt 0:05:58]} 9. O-O-O {[%emt 0:00:53]} c6 {[%emt 0:00:31]} 10. Nxe4 {[%emt 0:25:22]} Nxe4 {[%emt 0:00:47]} 11. Qxe4+ {[%emt 0:00:05]} Qe7 {[%emt 0:00:43]} 12. Qxe7+ {[%emt 0:02:06]} Bxe7 {[%emt 0:00:21]} 13. Bg3 {[%emt 0:00:17]} Be6 {[%emt 0:05:04]} 14. Nf3 {[%emt 0:01:37]} O-O-O {[%emt 0:02:05]} 15. Bc4 {[%emt 0:04:17]} Bf6 {[%emt 0:05:49]} 16. h4 {[%emt 0:09:03]} h6 {[%emt 0:11:17]} 17. Ne5 {[%emt 0:01:51]} Rhe8 {[%emt 0:01:58]} 18. Rhe1 {[%emt 0:01:21]} Re7 {[%emt 0:02:56]} 19. Bb3 {[%emt 0:02:03]} g5 {[%emt 0:06:13]} 20. hxg5 {[%emt 0:02:14]} hxg5 {[%emt 0:00:45]} 21. Nc4 {[%emt 0:01:51]} Nf4 {[%emt 0:08:54]} 22. Bxf4 {[%emt 0:12:45]} Bxc4 {[%emt 0:03:52]} 23. Bxc4 {[%emt 0:02:02]} Rxd1+ {[%emt 0:01:07]} 24. Rxd1 {[%emt 0:00:25]} gxf4 {[%emt 0:00:04]} 25. c3 {[%emt 0:00:48]} b5 {[%emt 0:01:31]} 26. Bd3 {[%emt 0:00:28]} Bh4 {[%emt 0:00:35]} 27. Rf1 {[%emt 0:01:47]} Kc7 {[%emt 0:00:42]} 28. Kd2 {[%emt 0:00:41]} Kb6 {[%emt 0:01:00]} 29. f3 {[%emt 0:02:57]} a5 {[%emt 0:01:14]} 30. Be4 {[%emt 0:00:43]} f6 {[%emt 0:01:22]} 31. Rh1 {[%emt 0:00:42]} Bf2 {[%emt 0:00:32]} 1/2-1/2

[Event "Lueneburg Open-A 2019"]
[Site "Lueneburg"]
[Date "2019.08.07"]
[Round "5.3"]
[White "Stork, Oliver"]
[Black "Kollars, Dmitrij"]
[Result "0-1"]
[ECO "A21"]
[WhiteElo "2322"]
[BlackElo "2581"]
[Annotator "ChessBase"]
[PlyCount "82"]
[EventDate "2019.08.03"]
[EventType "swiss"]
[EventCountry "GER"]
[SourceTitle "playchess.com"]
[Source "ChessBase"]
[SourceQuality "1"]
[TimeControl "40/5400+30:1800+30"]

1. c4 {[%emt 0:00:00]} e5 {[%emt 0:00:00]} 2. Nc3 {[%emt 0:00:00]} Bb4 {[%emt 0:00:00]} 3. Nd5 {[%emt 0:00:00]} a5 {[%emt 0:00:12]} 4. e3 {[%emt 0:01:21]} Nf6 {[%emt 0:00:42]} 5. Nxb4 {[%emt 0:04:18]} axb4 {[%emt 0:00:05]} 6. d4 {[%emt 0:05:48]} exd4 {[%emt 0:08:41]} 7. Qxd4 {[%emt 0:01:32]} Nc6 {[%emt 0:01:14]} 8. Qd1 {[%emt 0:03:45]} O-O {[%emt 0:04:42]} 9. Nf3 {[%emt 0:00:22]} d5 {[%emt 0:01:38]} 10. cxd5 {[%emt 0:14:21]} Qxd5 {[%emt 0:01:02]} 11. Qxd5 {[%emt 0:06:19]} Nxd5 {[%emt 0:00:05]} 12. Bd3 {[%emt 0:04:52]} Rd8 {[%emt 0:08:53]} 13. O-O {[%emt 0:06:19]} Bg4 {[%emt 0:03:25]} 14. Rd1 {[%emt 0:08:32]} Ne5 {[%emt 0:14:12]} 15. Be2 {[%emt 0:04:25]} c5 {[%emt 0:03:32]} 16. Bd2 {[%emt 0:10:49]} Nb6 {[%emt 0:03:42]} 17. b3 {[%emt 0:07:06]} f6 {[%emt 0:04:02]} 18. Kf1 {[%emt 0:01:38]} Nd3 {[%emt 0:01:14]} 19. Be1 {[%emt 0:03:11]} Nxe1 {[%emt 0:01:05]} 20. Kxe1 {[%emt 0:01:19]} Rxd1+ {[%emt 0:01:07]} 21. Kxd1 {[%emt 0:00:32]} Kf8 {[%emt 0:00:56]} 22. Nd2 {[%emt 0:02:39]} Bxe2+ {[%emt 0:07:12]} 23. Kxe2 {[%emt 0:00:07]} Nd5 {[%emt 0:00:05]} 24. Ne4 {[%emt 0:03:41]} b6 {[%emt 0:01:09]} 25. Kd3 {[%emt 0:02:09]} Ke7 {[%emt 0:02:06]} 26. Kc4 {[%emt 0:02:05]} Nc7 {[%emt 0:00:05]} 27. g4 {[%emt 0:02:14]} g6 {[%emt 0:01:14]} 28. Ng3 {[%emt 0:02:04]} Kd7 {[%emt 0:03:16]} 29. h4 {[%emt 0:01:42]} Kc6 {[%emt 0:00:06]} 30. Kd3 {[%emt 0:00:07]} Nb5 {[%emt 0:02:54]} 31. h5 {[%emt 0:01:00]} Rd8+ {[%emt 0:01:41]} 32. Ke2 {[%emt 0:00:50]} Nc3+ {[%emt 0:01:18]} 33. Kf3 {[%emt 0:00:06]} Ra8 {[%emt 0:00:03]} 34. hxg6 {[%emt 0:00:08]} hxg6 {[%emt 0:00:04]} 35. Rh1 {[%emt 0:00:47]} Rxa2 {[%emt 0:02:02]} 36. Rh6 {[%emt 0:00:07]} c4 {[%emt 0:00:15]} 37. Rxg6 {[%emt 0:00:52]} cxb3 {[%emt 0:00:07]} 38. g5 {[%emt 0:01:16]} b2 {[%emt 0:00:20]} 39. gxf6 {[%emt 0:00:13]} b1=Q {[%emt 0:00:28]} 40. f7+ {[%emt 0:00:20]} Qxg6 {[%emt 0:00:05]} 41. f8=Q {[%emt 0:30:11]} Kb5 {[%emt 0:30:34]} 0-1

[Event "Lueneburg Open-A 2019"]
[Site "Lueneburg"]
[Date "2019.08.07"]
[Round "5.4"]
[White "Vorobiov, Evgeny E."]
[Black "Colpe, Malte"]
[Result "1/2-1/2"]
[ECO "E04"]
[WhiteElo "2578"]
[BlackElo "2367"]
[Annotator "ChessBase"]
[PlyCount "23"]
[EventDate "2019.08.03"]
[EventType "swiss"]
[EventCountry "GER"]
[SourceTitle "playchess.com"]
[Source "ChessBase"]
[SourceQuality "1"]
[TimeControl "40/5400+30:1800+30"]

1. d4 {[%emt 0:00:00]} Nf6 {[%emt 0:00:00]} 2. c4 {[%emt 0:00:00]} e6 {[%emt 0:00:00]} 3. Nf3 {[%emt 0:00:00]} d5 {[%emt 0:00:00]} 4. g3 {[%emt 0:00:00]} dxc4 {[%emt 0:00:39]} 5. Bg2 {[%emt 0:00:10]} Bd7 {[%emt 0:00:33]} 6. Ne5 {[%emt 0:01:06]} Bc6 {[%emt 0:00:14]} 7. Nxc6 {[%emt 0:00:28]} Nxc6 {[%emt 0:00:07]} 8. O-O {[%emt 0:00:43]} Qd7 {[%emt 0:00:29]} 9. e3 {[%emt 0:01:28]} O-O-O {[%emt 0:01:04]} 10. Nd2 {[%emt 0:07:10]} e5 {[%emt 0:00:24]} 11. Nxc4 {[%emt 0:02:27]} exd4 {[%emt 0:00:10]} 12. Qb3 {[%emt 0:07:07]} 1/2-1/2

[Event "Lueneburg Open-A 2019"]
[Site "Lueneburg"]
[Date "2019.08.07"]
[Round "5.6"]
[White "Feuerstack, Aljoscha"]
[Black "Weishaeutel, Moritz"]
[Result "1/2-1/2"]
[ECO "B84"]
[WhiteElo "2441"]
[BlackElo "2276"]
[Annotator "NA"]
[PlyCount "53"]
[EventDate "2019.08.03"]
[EventType "swiss"]
[EventCountry "GER"]
[SourceTitle "playchess.com"]
[Source "ChessBase"]
[SourceQuality "1"]
[TimeControl "40/5400+30:1800+30"]

1. e4 {[%emt 0:00:00]} c5 {[%emt 0:00:00]} 2. Nf3 {[%emt 0:00:00]} d6 {[%emt 0:00:00]} 3. d4 {[%emt 0:00:00]} cxd4 {[%emt 0:00:00]} 4. Nxd4 {[%emt 0:00:00]} Nf6 {[%emt 0:00:00]} 5. Nc3 {[%emt 0:00:00]} a6 {[%emt 0:00:00]} 6. Be2 {[%emt 0:00:25]} Nbd7 {[%emt 0:00:00]} 7. Be3 {[%emt 0:00:36]} e6 {[%emt 0:00:08]} 8. g4 {[%emt 0:00:36]} h6 {[%emt 0:00:05]} 9. f4 {[%emt 0:00:07]} g5 {[%emt 0:00:06]} 10. f5 {[%emt 0:00:32]} Ne5 {[%emt 0:00:08]} 11. h4 {[%emt 0:03:53]} gxh4 {[%emt 0:04:49]} 12. fxe6 {[%emt 0:02:52]} fxe6 {[%emt 0:00:24]} 13. g5 {[%emt 0:01:29]} hxg5 {[%emt 0:00:31]} 14. Bxg5 {[%emt 0:00:06]} Be7 {[%emt 0:09:07]} 15. Qd2 {[%emt 0:28:03]} Nh5 {[%emt 0:11:45]} 16. Bxe7 {[%emt 0:16:43]} Qxe7 {[%emt 0:00:10]} 17. Bxh5+ {[%emt 0:00:05]} Rxh5 {[%emt 0:00:05]} 18. O-O-O {[%emt 0:00:06]} Bd7 {[%emt 0:20:36]} 19. Rhg1 {[%emt 0:12:23]} O-O-O {[%emt 0:06:13]} 20. Nf5 {[%emt 0:00:09]} exf5 {[%emt 0:00:42]} 21. Nd5 {[%emt 0:00:09]} Qf8 {[%emt 0:02:28]} 22. Qa5 {[%emt 0:14:58]} Kb8 {[%emt 0:00:04]} 23. Qc7+ {[%emt 0:00:07]} Ka7 {[%emt 0:02:32]} 24. Qb6+ {[%emt 0:00:07]} Kb8 {[%emt 0:00:03]} 25. Qc7+ {[%emt 0:01:43]} Ka7 {[%emt 0:00:05]} 26. Qb6+ {[%emt 0:00:04]} Kb8 {[%emt 0:00:03]} 27. Qc7+ {[%emt 0:18:17]} 1/2-1/2